[Event "Sunway Sitges Chess Festival"]
[Date "2024.12.21"]
[White "Sofronie, Iulian"]
[Black "Ilamparthi A R"]
[WhiteElo "2368"]
[BlackElo "2391"]
[Round "5.7"]
[Result "1-0"]
[TimeControl "40/5400+30:1800+30"]

1. d4 {[%clk 1:30:58]} 1... f5 {[%clk 1:30:52]} 2. Bf4 {[%clk 1:31:08]} 2... Nf6
{[%clk 1:31:14]} 3. e3 {[%clk 1:31:03]} 3... d6 {[%clk 1:31:36]} 4. Nc3 {[%clk
1:30:37]} 4... e6 {[%clk 1:31:14]} 5. h3 {[%clk 1:27:07]} 5... Nc6 {[%clk
1:30:41]} 6. Nf3 {[%clk 1:26:16]} 6... g6 {[%clk 1:29:55]} 7. Bd3 {[%clk
1:16:13]} 7... Bg7 {[%clk 1:27:13]} 8. g4 {[%clk 1:14:50]} 8... Qe7 {[%clk
1:21:41]} 9. gxf5 {[%clk 1:05:21]} 9... exf5 {[%clk 1:20:53]} 10. Qe2 {[%clk
0:59:28]} 10... Bd7 {[%clk 1:18:14]} 11. O-O-O {[%clk 0:52:51]} 11... O-O-O
{[%clk 1:16:01]} 12. Bb5 {[%clk 0:38:50]} 12... a6 {[%clk 0:42:07]} 13. Bxa6
{[%clk 0:31:46]} 13... bxa6 {[%clk 0:41:50]} 14. Qxa6+ {[%clk 0:32:10]} 14...
Kb8 {[%clk 0:42:15]} 15. d5 {[%clk 0:28:02]} 15... Na7 {[%clk 0:41:42]} 16. Rd4
{[%clk 0:28:21]} 16... Ka8 {[%clk 0:41:13]} 17. Rc4 {[%clk 0:27:40]} 17... Ne8
{[%clk 0:21:01]} 18. Bg5 {[%clk 0:26:32]} 18... Bf6 {[%clk 0:21:22]} 19. Bxf6
{[%clk 0:26:25]} 19... Qxf6 {[%clk 0:21:50]} 20. Nd4 {[%clk 0:26:36]} 20... Rb8
{[%clk 0:21:02]} 21. Nc6 {[%clk 0:17:27]} 21... Bxc6 {[%clk 0:21:15]} 22. dxc6
{[%clk 0:17:53]} 22... Rb6 {[%clk 0:18:01]} 23. Qa3 {[%clk 0:17:54]} 23... Qd8
{[%clk 0:08:11]} 24. Nd5 {[%clk 0:17:50]} 24... Qc8 {[%clk 0:01:48]} 25. Ra4
{[%clk 0:15:40]} 25... Qb8 {[%clk 0:-2:-11]} 26. Qc3 {[%clk 0:12:16]} 26... Rf8
{[%clk 0:01:56]} 27. Rd1 {[%clk 0:12:01]} 27... Rf7 {[%clk 0:01:41]} 28. Rd3
{[%clk 0:09:36]} 28... f4 {[%clk 0:00:45]} 29. e4 {[%clk 0:09:58]} 29... Rb5
{[%clk 0:00:32]} 30. Qd4 {[%clk 0:09:49]} 1-0

[Variant "Standard"]
[Site "Europe Echecs"]

[Event "Sunway Sitges Chess Festival"]
[Date "2024.12.21"]
[White "Shamatava, Nikolozi"]
[Black "Raczek, Krzysztof"]
[WhiteElo "2334"]
[BlackElo "2443"]
[Round "5.8"]
[Result "0-1"]
[TimeControl "40/5400+30:1800+30"]

1. d4 {[%clk 1:30:58]} 1... Nf6 {[%clk 1:28:03]} 2. Nf3 {[%clk 1:31:07]} 2... d5
{[%clk 1:27:53]} 3. Bf4 {[%clk 1:31:21]} 3... c5 {[%clk 1:26:15]} 4. e3 {[%clk
1:31:42]} 4... Nc6 {[%clk 1:24:51]} 5. c3 {[%clk 1:31:59]} 5... Qb6 {[%clk
1:23:37]} 6. Qc1 {[%clk 1:30:49]} 6... Bf5 {[%clk 1:22:11]} 7. Nbd2 {[%clk
1:23:47]} 7... e6 {[%clk 1:19:35]} 8. Be2 {[%clk 1:21:41]} 8... cxd4 {[%clk
1:12:49]} 9. exd4 {[%clk 1:20:07]} 9... Rc8 {[%clk 1:13:06]} 10. O-O {[%clk
1:19:52]} 10... Be7 {[%clk 1:12:44]} 11. h3 {[%clk 1:18:49]} 11... O-O {[%clk
1:06:37]} 12. Rd1 {[%clk 1:14:00]} 12... Bg6 {[%clk 1:00:24]} 13. Nf1 {[%clk
1:07:59]} 13... Ne4 {[%clk 0:58:10]} 14. Ne3 {[%clk 0:59:03]} 14... Qd8 {[%clk
0:51:42]} 15. Ng4 {[%clk 0:52:57]} 15... f6 {[%clk 0:51:08]} 16. Bf1 {[%clk
0:40:35]} 16... h5 {[%clk 0:49:00]} 17. Ne3 {[%clk 0:39:02]} 17... Bh7 {[%clk
0:46:15]} 18. Bh2 {[%clk 0:38:23]} 18... f5 {[%clk 0:35:55]} 19. Bd3 {[%clk
0:31:46]} 19... f4 {[%clk 0:30:30]} 20. Nc2 {[%clk 0:31:36]} 20... g5 {[%clk
0:28:32]} 21. Nd2 {[%clk 0:29:07]} 21... g4 {[%clk 0:27:11]} 22. hxg4 {[%clk
0:22:39]} 22... hxg4 {[%clk 0:26:23]} 23. Nxe4 {[%clk 0:20:35]} 23... dxe4
{[%clk 0:25:28]} 24. Be2 {[%clk 0:20:05]} 24... g3 {[%clk 0:21:25]} 25. fxg3
{[%clk 0:20:13]} 25... f3 {[%clk 0:21:29]} 26. Bc4 {[%clk 0:19:47]} 26... Bg5
{[%clk 0:19:22]} 27. Ne3 {[%clk 0:19:10]} 27... Qf6 {[%clk 0:17:52]} 28. Ng4
{[%clk 0:19:07]} 28... Qg7 {[%clk 0:17:44]} 29. Qc2 {[%clk 0:18:33]} 29... Nd8
{[%clk 0:14:12]} 30. Qb3 {[%clk 0:17:23]} 30... f2+ {[%clk 0:06:46]} 31. Kf1
{[%clk 0:10:53]} 31... e3 {[%clk 0:06:25]} 32. Ne5 {[%clk 0:04:57]} 32... Rxc4
{[%clk 0:04:51]} 33. Qxc4 {[%clk 0:03:57]} 33... Qh6 {[%clk 0:05:19]} 34. Ng4
{[%clk 0:04:22]} 34... Qh5 {[%clk 0:05:47]} 35. Qe2 {[%clk 0:04:29]} 35... Kh8
{[%clk 0:05:59]} 36. d5 {[%clk 0:03:05]} 36... e5 {[%clk 0:06:13]} 37. Qc4
{[%clk 0:02:16]} 37... Bf5 {[%clk 0:05:53]} 38. Nxe5 {[%clk 0:02:23]} 38... Qxh2
{[%clk 0:05:31]} 39. Nf3 {[%clk 0:02:43]} 39... Qh1+ {[%clk 0:03:41]} 40. Ke2
{[%clk 0:32:58]} 40... f1=Q+ {[%clk 0:03:12]} 41. Rxf1 {[%clk 0:33:23]} 41...
Qxg2+ {[%clk 0:34:08]} 42. Ke1 {[%clk 0:33:44]} 42... Bh3 {[%clk 0:32:53]} 43.
Qd4+ {[%clk 0:32:31]} 43... Kg8 {[%clk 0:32:57]} 0-1

[Variant "Standard"]
[Site "Europe Echecs"]

[Event "Sunway Sitges Chess Festival"]
[Date "2024.12.21"]
[White "Brzezina, Piotr"]
[Black "Ivanchuk, Vasyl"]
[WhiteElo "2274"]
[BlackElo "2630"]
[Round "5.9"]
[Result "0-1"]
[TimeControl "40/5400+30:1800+30"]

1. e4 {[%clk 1:28:15]} 1... c5 {[%clk 1:30:57]} 2. Nf3 {[%clk 1:28:39]} 2... d6
{[%clk 1:31:24]} 3. d4 {[%clk 1:28:42]} 3... cxd4 {[%clk 1:31:48]} 4. Nxd4
{[%clk 1:29:08]} 4... Nf6 {[%clk 1:32:14]} 5. Nc3 {[%clk 1:29:32]} 5... Nc6
{[%clk 1:32:39]} 6. Bg5 {[%clk 1:28:24]} 6... e6 {[%clk 1:33:04]} 7. Qd3 {[%clk
1:28:44]} 7... Be7 {[%clk 1:32:54]} 8. O-O-O {[%clk 1:26:57]} 8... Nxd4 {[%clk
1:33:20]} 9. Qxd4 {[%clk 1:26:41]} 9... a6 {[%clk 1:33:48]} 10. Bxf6 {[%clk
1:10:55]} 10... Bxf6 {[%clk 1:27:01]} 11. Qxd6 {[%clk 1:11:19]} 11... Qxd6
{[%clk 1:27:26]} 12. Rxd6 {[%clk 1:11:44]} 12... Bd7 {[%clk 1:27:47]} 13. Rd1
{[%clk 0:50:33]} 13... Rc8 {[%clk 1:26:47]} 14. Ne2 {[%clk 0:50:31]} 14... Ke7
{[%clk 1:11:00]} 15. Ng3 {[%clk 0:35:54]} 15... h5 {[%clk 0:57:53]} 16. Bd3
{[%clk 0:35:23]} 16... h4 {[%clk 0:51:55]} 17. Ne2 {[%clk 0:35:20]} 17... g5
{[%clk 0:53:20]} 18. f3 {[%clk 0:32:13]} 18... b5 {[%clk 0:52:30]} 19. Kb1
{[%clk 0:29:02]} 19... a5 {[%clk 0:51:56]} 20. g3 {[%clk 0:15:38]} 20... b4
{[%clk 0:40:54]} 21. f4 {[%clk 0:10:50]} 21... e5 {[%clk 0:40:06]} 22. f5 {[%clk
0:11:15]} 22... g4 {[%clk 0:37:52]} 23. Rdg1 {[%clk 0:10:51]} 23... Bc6 {[%clk
0:29:18]} 24. h3 {[%clk 0:06:38]} 24... Rcg8 {[%clk 0:29:46]} 25. gxh4 {[%clk
0:06:11]} 25... Rxh4 {[%clk 0:29:56]} 26. hxg4 {[%clk 0:06:35]} 26... Rxh1
{[%clk 0:26:42]} 27. Rxh1 {[%clk 0:07:02]} 27... Rxg4 {[%clk 0:27:08]} 28. Rg1
{[%clk 0:07:30]} 28... Rh4 {[%clk 0:27:33]} 29. Ng3 {[%clk 0:07:49]} 29... Bg5
{[%clk 0:27:09]} 30. a3 {[%clk 0:04:57]} 30... bxa3 {[%clk 0:25:10]} 31. bxa3
{[%clk 0:05:26]} 31... f6 {[%clk 0:25:29]} 32. Ka2 {[%clk 0:04:05]} 32... Kd6
{[%clk 0:23:54]} 33. Re1 {[%clk 0:00:55]} 33... Kc5 {[%clk 0:22:50]} 34. Kb3
{[%clk 0:01:03]} 34... Rh3 {[%clk 0:21:49]} 35. Nf1 {[%clk 0:00:32]} 35... Kd4
{[%clk 0:21:55]} 36. Kb2 {[%clk 0:00:41]} 36... Rf3 {[%clk 0:15:29]} 37. Rd1
{[%clk 0:00:40]} 37... Kc5 {[%clk 0:13:59]} 38. Re1 {[%clk 0:00:32]} 38... a4
{[%clk 0:06:58]} 39. Rd1 {[%clk 0:00:31]} 39... Rf4 {[%clk 0:03:41]} 40. Nd2
{[%clk 0:30:31]} 40... Kd4 {[%clk 0:33:41]} 41. Nc4 {[%clk 0:18:53]} 41... Bxe4
{[%clk 0:27:16]} 42. Bxe4+ {[%clk 0:19:04]} 42... Kxe4 {[%clk 0:26:55]} 43. Nd6+
{[%clk 0:19:10]} 43... Ke3 {[%clk 0:21:17]} 44. Kc3 {[%clk 0:01:44]} 44... Rg4
{[%clk 0:17:31]} 45. Re1+ {[%clk 0:01:26]} 45... Kf3 {[%clk 0:17:10]} 46. Nc4
{[%clk 0:00:44]} 46... e4 {[%clk 0:12:56]} 47. Kd4 {[%clk 0:00:42]} 47... e3+
{[%clk 0:08:08]} 48. Kd3 {[%clk 0:01:10]} 48... e2 {[%clk 0:08:30]} 49. Nd6
{[%clk 0:00:34]} 49... Be3 {[%clk 0:04:52]} 50. Nb5 {[%clk 0:00:33]} 50... Rg1
{[%clk 0:03:52]} 51. Rxe2 {[%clk 0:00:35]} 51... Rd1+ {[%clk 0:04:17]} 52. Kc4
{[%clk 0:01:01]} 52... Kxe2 {[%clk 0:04:42]} 53. Nc3+ {[%clk 0:01:28]} 53... Kd2
{[%clk 0:05:02]} 54. Nxd1 {[%clk 0:01:56]} 54... Kxd1 {[%clk 0:05:24]} 55. c3
{[%clk 0:01:16]} 55... Kc2 {[%clk 0:04:46]} 0-1

[Variant "Standard"]
[Site "Europe Echecs"]

[Event "Sunway Sitges Chess Festival"]
[Date "2024.12.21"]
[White "Arfan, Aditya Bagus"]
[Black "Aloma Vidal, Robert"]
[WhiteElo "2416"]
[BlackElo "2398"]
[Round "5.10"]
[Result "0-1"]
[TimeControl "40/5400+30:1800+30"]

1. e4 {[%clk 1:27:36]} 1... c5 {[%clk 1:30:19]} 2. Nf3 {[%clk 1:27:45]} 2... g6
{[%clk 1:30:37]} 3. d4 {[%clk 1:27:55]} 3... cxd4 {[%clk 1:30:59]} 4. Nxd4
{[%clk 1:28:10]} 4... Bg7 {[%clk 1:29:53]} 5. c4 {[%clk 1:28:26]} 5... Qb6
{[%clk 1:28:33]} 6. Nb3 {[%clk 1:27:27]} 6... d6 {[%clk 1:26:33]} 7. Be3 {[%clk
1:24:59]} 7... Qd8 {[%clk 1:26:19]} 8. Qd2 {[%clk 1:24:35]} 8... Nf6 {[%clk
1:26:02]} 9. f3 {[%clk 1:24:57]} 9... a5 {[%clk 1:24:04]} 10. Nc3 {[%clk
1:21:49]} 10... a4 {[%clk 1:21:10]} 11. Nd4 {[%clk 1:22:14]} 11... Nc6 {[%clk
1:20:14]} 12. Ndb5 {[%clk 1:19:09]} 12... O-O {[%clk 1:19:35]} 13. Be2 {[%clk
1:17:57]} 13... Bd7 {[%clk 1:12:18]} 14. O-O {[%clk 1:17:39]} 14... Qa5 {[%clk
1:12:09]} 15. Rac1 {[%clk 1:09:56]} 15... Rfc8 {[%clk 1:12:09]} 16. f4 {[%clk
1:00:41]} 16... Bg4 {[%clk 1:01:32]} 17. Rfd1 {[%clk 0:47:51]} 17... Qb4 {[%clk
0:53:58]} 18. h3 {[%clk 0:33:50]} 18... Be6 {[%clk 0:51:33]} 19. a3 {[%clk
0:29:41]} 19... Qb3 {[%clk 0:38:15]} 20. c5 {[%clk 0:19:41]} 20... dxc5 {[%clk
0:31:30]} 21. Bxc5 {[%clk 0:19:37]} 21... Rd8 {[%clk 0:30:17]} 22. Qe1 {[%clk
0:19:31]} 22... Qxb2 {[%clk 0:18:15]} 23. Rb1 {[%clk 0:10:09]} 23... Qc2 {[%clk
0:18:01]} 24. Rdc1 {[%clk 0:09:55]} 24... Qd2 {[%clk 0:17:53]} 25. Qxd2 {[%clk
0:06:38]} 25... Rxd2 {[%clk 0:18:16]} 26. Nc7 {[%clk 0:05:41]} 26... Rc8 {[%clk
0:15:21]} 27. Nxe6 {[%clk 0:06:09]} 27... fxe6 {[%clk 0:15:44]} 28. Bf1 {[%clk
0:01:18]} 28... Nh5 {[%clk 0:14:32]} 29. Nxa4 {[%clk 0:00:38]} 29... Nd4 {[%clk
0:12:52]} 30. Kh1 {[%clk 0:00:33]} 30... Nf3 {[%clk 0:03:22]} 31. gxf3 {[%clk
0:00:42]} 31... Ng3+ {[%clk 0:03:26]} 32. Kg1 {[%clk 0:01:09]} 32... Rxc5 {[%clk
0:03:46]} 33. Nxc5 {[%clk 0:01:22]} 33... Bd4# {[%clk 0:00:00]} 0-1

[Variant "Standard"]
[Site "Europe Echecs"]

[Event "Sunway Sitges Chess Festival"]
[Date "2024.12.21"]
[White "Abergel, Thal"]
[Black "Safarov, Deniel"]
[WhiteElo "2411"]
[BlackElo "2319"]
[Round "5.11"]
[Result "1-0"]
[TimeControl "40/5400+30:1800+30"]

1. Nf3 {[%clk 1:30:57]} 1... Nf6 {[%clk 1:30:45]} 2. g3 {[%clk 1:31:21]} 2... b5
{[%clk 1:30:31]} 3. Bg2 {[%clk 1:30:21]} 3... Bb7 {[%clk 1:30:44]} 4. O-O {[%clk
1:30:36]} 4... e6 {[%clk 1:30:18]} 5. b3 {[%clk 1:29:51]} 5... d6 {[%clk
1:26:41]} 6. c4 {[%clk 1:29:22]} 6... b4 {[%clk 1:23:30]} 7. d4 {[%clk 1:28:14]}
7... Be7 {[%clk 1:19:24]} 8. Nbd2 {[%clk 1:26:18]} 8... Nbd7 {[%clk 1:14:30]} 9.
Qc2 {[%clk 1:25:26]} 9... c5 {[%clk 1:10:52]} 10. Bb2 {[%clk 1:25:12]} 10... O-O
{[%clk 1:07:23]} 11. Rad1 {[%clk 1:24:02]} 11... cxd4 {[%clk 1:05:15]} 12. Bxd4
{[%clk 1:23:05]} 12... e5 {[%clk 1:01:59]} 13. Bb2 {[%clk 1:22:00]} 13... Nc5
{[%clk 0:59:12]} 14. Nh4 {[%clk 1:16:00]} 14... Bxg2 {[%clk 0:57:06]} 15. Nxg2
{[%clk 1:15:56]} 15... Qc8 {[%clk 0:48:52]} 16. Ne3 {[%clk 1:14:28]} 16... Re8
{[%clk 0:49:10]} 17. Nf5 {[%clk 1:08:16]} 17... Bf8 {[%clk 0:46:04]} 18. Rfe1
{[%clk 0:59:17]} 18... g6 {[%clk 0:40:29]} 19. Ne3 {[%clk 1:01:53]} 19... Qc6
{[%clk 0:32:14]} 20. Ndf1 {[%clk 0:56:41]} 20... Rad8 {[%clk 0:25:10]} 21. Nd5
{[%clk 0:55:49]} 21... Nxd5 {[%clk 0:25:34]} 22. Rxd5 {[%clk 0:56:06]} 22... f5
{[%clk 0:25:50]} 23. Red1 {[%clk 0:55:29]} 23... Ne6 {[%clk 0:25:54]} 24. Qd2
{[%clk 0:51:52]} 24... Rb8 {[%clk 0:23:45]} 25. Ne3 {[%clk 0:49:05]} 25... Nc5
{[%clk 0:24:00]} 26. Qc2 {[%clk 0:47:14]} 26... a5 {[%clk 0:20:31]} 27. h4
{[%clk 0:47:17]} 27... Rb7 {[%clk 0:17:51]} 28. h5 {[%clk 0:44:59]} 28... Re6
{[%clk 0:15:56]} 29. Ng2 {[%clk 0:39:49]} 29... Rf7 {[%clk 0:09:40]} 30. Bc1
{[%clk 0:35:21]} 30... gxh5 {[%clk 0:07:30]} 31. Nh4 {[%clk 0:30:00]} 31... Ne4
{[%clk 0:05:30]} 32. Nxf5 {[%clk 0:29:55]} 32... Nc3 {[%clk 0:05:16]} 33. e4
{[%clk 0:30:16]} 33... Nxd1 {[%clk 0:05:30]} 34. Qxd1 {[%clk 0:30:40]} 34... Rg6
{[%clk 0:03:55]} 35. Qxh5 {[%clk 0:30:06]} 35... a4 {[%clk 0:03:57]} 36. Be3
{[%clk 0:30:04]} 36... axb3 {[%clk 0:03:43]} 37. axb3 {[%clk 0:30:32]} 37... Qa8
{[%clk 0:04:07]} 38. Qd1 {[%clk 0:30:12]} 38... Qa2 {[%clk 0:02:54]} 39. Rb5
{[%clk 0:27:57]} 39... Rgf6 {[%clk 0:00:42]} 40. Rb8 {[%clk 0:56:46]} 40... h5
{[%clk 0:30:32]} 41. Kg2 {[%clk 0:52:36]} 41... Qa3 {[%clk 0:22:55]} 42. Qxh5
{[%clk 0:51:19]} 42... Qxb3 {[%clk 0:23:13]} 43. Rxf8+ {[%clk 0:51:25]} 1-0

[Variant "Standard"]
[Site "Europe Echecs"]

[Event "Sunway Sitges Chess Festival"]
[Date "2024.12.21"]
[White "Savitha Shri B"]
[Black "Alekseenko, Kirill"]
[WhiteElo "2329"]
[BlackElo "2673"]
[Round "5.12"]
[Result "1/2-1/2"]
[TimeControl "40/5400+30:1800+30"]

1. e4 {[%clk 1:29:48]} 1... e5 {[%clk 1:30:51]} 2. Nf3 {[%clk 1:30:12]} 2... Nc6
{[%clk 1:31:13]} 3. Bc4 {[%clk 1:30:37]} 3... Bc5 {[%clk 1:30:36]} 4. c3 {[%clk
1:30:45]} 4... Nf6 {[%clk 1:31:25]} 5. d4 {[%clk 1:31:04]} 5... exd4 {[%clk
1:31:42]} 6. cxd4 {[%clk 1:31:29]} 6... Bb4+ {[%clk 1:31:09]} 7. Nbd2 {[%clk
1:31:37]} 7... d5 {[%clk 1:32:01]} 8. exd5 {[%clk 1:31:50]} 8... Nxd5 {[%clk
1:32:17]} 9. O-O {[%clk 1:31:48]} 9... O-O {[%clk 1:32:38]} 10. a3 {[%clk
1:32:03]} 10... Bxd2 {[%clk 1:32:35]} 11. Bxd2 {[%clk 1:22:02]} 11... Nb6 {[%clk
1:32:58]} 12. Ba2 {[%clk 1:21:22]} 12... Be6 {[%clk 1:33:21]} 13. Bxe6 {[%clk
1:18:29]} 13... fxe6 {[%clk 1:33:42]} 14. Qe2 {[%clk 1:07:51]} 14... Qd5 {[%clk
1:22:07]} 15. Bc3 {[%clk 1:14:20]} 15... Rae8 {[%clk 1:17:49]} 16. Rfe1 {[%clk
1:03:26]} 16... Qd6 {[%clk 1:03:12]} 17. Ng5 {[%clk 0:49:21]} 17... h6 {[%clk
0:51:14]} 18. Ne4 {[%clk 0:47:49]} 18... Qd8 {[%clk 0:49:00]} 19. Nc5 {[%clk
0:46:45]} 19... Nd5 {[%clk 0:39:24]} 20. Qg4 {[%clk 0:37:26]} 20... b6 {[%clk
0:15:27]} 21. Nd3 {[%clk 0:27:21]} 21... Rf6 {[%clk 0:39:32]} 22. Re4 {[%clk
0:26:10]} 22... Qe7 {[%clk 0:36:43]} 23. h3 {[%clk 0:21:42]} 23... Qf7 {[%clk
0:33:33]} 24. f4 {[%clk 0:18:34]} 24... Rf5 {[%clk 0:29:36]} 25. Qg3 {[%clk
0:17:09]} 25... Nf6 {[%clk 0:29:17]} 26. Re2 {[%clk 0:17:08]} 26... Rd5 {[%clk
0:24:15]} 27. Qf2 {[%clk 0:17:00]} 27... Red8 {[%clk 0:23:38]} 28. Ne5 {[%clk
0:14:08]} 28... Nxe5 {[%clk 0:24:02]} 29. fxe5 {[%clk 0:13:37]} 29... Nd7 {[%clk
0:24:09]} 30. Qxf7+ {[%clk 0:11:00]} 30... Kxf7 {[%clk 0:24:35]} 31. Rf1+ {[%clk
0:11:26]} 31... Kg8 {[%clk 0:24:31]} 32. Rf4 {[%clk 0:10:32]} 32... Nb8 {[%clk
0:22:59]} 33. Ref2 {[%clk 0:06:10]} 33... R5d7 {[%clk 0:22:03]} 34. Rg4 {[%clk
0:06:09]} 34... Kh7 {[%clk 0:15:30]} 35. h4 {[%clk 0:01:59]} 35... Nc6 {[%clk
0:13:28]} 36. Rff4 {[%clk 0:03:10]} 36... Ne7 {[%clk 0:10:06]} 37. h5 {[%clk
0:-1:-31]} 37... Nd5 {[%clk 0:05:57]} 38. Rf3 {[%clk 0:02:02]} 38... Re8 {[%clk
0:03:59]} 39. Rg6 {[%clk 0:02:03]} 39... Kg8 {[%clk 0:01:43]} 40. Bd2 {[%clk
0:31:53]} 40... Ne7 {[%clk 0:-5:-21]} 41. Rxe6 {[%clk 0:25:26]} 41... Rxd4
{[%clk 0:27:54]} 42. Bb4 {[%clk 0:25:38]} 42... c5 {[%clk 0:20:41]} 43. Bc3
{[%clk 0:25:27]} 43... Rdd8 {[%clk 0:15:58]} 44. Rd6 {[%clk 0:19:29]} 44... Nd5
{[%clk 0:12:22]} 45. Rxd8 {[%clk 0:17:36]} 45... Rxd8 {[%clk 0:17:10]} 46. Rd3
{[%clk 0:18:01]} 46... Kf7 {[%clk 0:16:15]} 47. e6+ {[%clk 0:18:23]} 47... Kxe6
{[%clk 0:16:41]} 48. Bxg7 {[%clk 0:18:51]} 48... Rg8 {[%clk 0:15:26]} 49. Bxh6
{[%clk 0:19:17]} 49... Rh8 {[%clk 0:15:49]} 50. Bc1 {[%clk 0:13:29]} 50... Rxh5
{[%clk 0:16:14]} 51. g3 {[%clk 0:13:08]} 51... Ke5 {[%clk 0:15:35]} 52. Kg2
{[%clk 0:11:38]} 52... Ke4 {[%clk 0:15:21]} 53. Rd1 {[%clk 0:11:55]} 53... Rh7
{[%clk 0:15:37]} 54. Re1+ {[%clk 0:11:25]} 54... Kd3 {[%clk 0:15:20]} 55. g4
{[%clk 0:11:50]} 55... Kc2 {[%clk 0:09:37]} 56. Kg3 {[%clk 0:11:18]} 56... Re7
{[%clk 0:09:09]} 57. Rh1 {[%clk 0:08:16]} 57... Re4 {[%clk 0:09:33]} 58. g5
{[%clk 0:08:01]} 58... Ne7 {[%clk 0:09:59]} 59. Kf3 {[%clk 0:07:46]} 59... Rc4
{[%clk 0:10:24]} 60. b4 {[%clk 0:05:39]} 60... cxb4 {[%clk 0:09:53]} 61. axb4
{[%clk 0:06:08]} 61... Rxb4 {[%clk 0:10:17]} 62. Be3 {[%clk 0:06:36]} 62... a5
{[%clk 0:06:26]} 63. Rh7 {[%clk 0:04:33]} 63... Ng6 {[%clk 0:06:13]} 64. Ra7
{[%clk 0:03:58]} 64... Ne5+ {[%clk 0:05:52]} 65. Kg3 {[%clk 0:04:27]} 65... Nc4
{[%clk 0:03:52]} 66. Bf4 {[%clk 0:04:54]} 66... Rb1 {[%clk 0:03:14]} 67. Kg2
{[%clk 0:05:18]} 67... Re1 {[%clk 0:02:10]} 68. g6 {[%clk 0:05:27]} 68... Re6
{[%clk 0:01:15]} 69. g7 {[%clk 0:05:53]} 69... Rg6+ {[%clk 0:01:43]} 70. Kf3
{[%clk 0:05:07]} 70... b5 {[%clk 0:01:09]} 71. Ke4 {[%clk 0:04:29]} 71... a4
{[%clk 0:01:20]} 72. Kf5 {[%clk 0:04:55]} 72... Rxg7 {[%clk 0:00:34]} 73. Rxg7
{[%clk 0:05:20]} 73... a3 {[%clk 0:00:58]} 74. Rg2+ {[%clk 0:03:12]} 74... Kd3
{[%clk 0:01:01]} 75. Rg3+ {[%clk 0:03:00]} 75... Kd4 {[%clk 0:00:57]} 76. Be5+
{[%clk 0:02:58]} 76... Nxe5 {[%clk 0:00:32]} 1/2-1/2

[Variant "Standard"]
[Site "Europe Echecs"]

[Event "Sunway Sitges Chess Festival"]
[Date "2024.12.21"]
[White "Domingo Nunez, Alejandro"]
[Black "Moussard, Jules"]
[WhiteElo "2318"]
[BlackElo "2649"]
[Round "5.13"]
[Result "0-1"]
[TimeControl "40/5400+30:1800+30"]

1. e4 {[%clk 1:25:41]} 1... c5 {[%clk 1:30:55]} 2. Nc3 {[%clk 1:26:00]} 2... e6
{[%clk 1:30:48]} 3. Nf3 {[%clk 1:26:26]} 3... Nc6 {[%clk 1:31:09]} 4. d4 {[%clk
1:26:52]} 4... cxd4 {[%clk 1:31:34]} 5. Nxd4 {[%clk 1:27:18]} 5... Qc7 {[%clk
1:31:57]} 6. Be3 {[%clk 1:27:41]} 6... a6 {[%clk 1:32:20]} 7. Bd3 {[%clk
1:27:32]} 7... Nf6 {[%clk 1:31:24]} 8. O-O {[%clk 1:27:45]} 8... Ne5 {[%clk
1:25:05]} 9. h3 {[%clk 1:28:06]} 9... b5 {[%clk 1:24:21]} 10. f4 {[%clk
1:21:42]} 10... Nc4 {[%clk 1:22:19]} 11. Bxc4 {[%clk 1:22:08]} 11... Qxc4 {[%clk
1:22:42]} 12. Qd3 {[%clk 1:22:27]} 12... Qc7 {[%clk 1:12:23]} 13. e5 {[%clk
1:22:44]} 13... b4 {[%clk 1:11:26]} 14. exf6 {[%clk 1:21:00]} 14... bxc3 {[%clk
1:11:52]} 15. fxg7 {[%clk 1:21:22]} 15... Bxg7 {[%clk 1:12:18]} 16. f5 {[%clk
1:21:46]} 16... cxb2 {[%clk 1:02:35]} 17. Rae1 {[%clk 1:22:09]} 17... Bb7 {[%clk
1:01:20]} 18. fxe6 {[%clk 1:22:32]} 18... dxe6 {[%clk 1:00:38]} 19. Nf5 {[%clk
1:22:57]} 19... Bf8 {[%clk 0:57:22]} 20. Re2 {[%clk 0:29:00]} 20... Rg8 {[%clk
0:54:10]} 21. Nh6 {[%clk 0:28:42]} 21... Bxh6 {[%clk 0:53:00]} 22. Bxh6 {[%clk
0:29:07]} 22... Qc6 {[%clk 0:51:31]} 0-1

[Variant "Standard"]
[Site "Europe Echecs"]

[Event "Sunway Sitges Chess Festival"]
[Date "2024.12.21"]
[White "Ilkhomi, Jaloliddin"]
[Black "Gholami Orimi, Mahdi"]
[WhiteElo "2278"]
[BlackElo "2402"]
[Round "5.14"]
[Result "0-1"]
[TimeControl "40/5400+30:1800+30"]

1. Nf3 {[%clk 1:30:40]} 1... d5 {[%clk 1:30:53]} 2. d4 {[%clk 1:29:50]} 2... Nf6
{[%clk 1:31:11]} 3. Bf4 {[%clk 1:30:14]} 3... Nh5 {[%clk 1:30:58]} 4. Bg5 {[%clk
1:29:33]} 4... h6 {[%clk 1:31:16]} 5. Bh4 {[%clk 1:28:55]} 5... g5 {[%clk
1:31:38]} 6. Bg3 {[%clk 1:29:57]} 6... Nxg3 {[%clk 1:32:01]} 7. hxg3 {[%clk
1:30:21]} 7... c5 {[%clk 1:32:24]} 8. e3 {[%clk 1:28:24]} 8... Bg7 {[%clk
1:32:50]} 9. c3 {[%clk 1:27:12]} 9... Qb6 {[%clk 1:33:06]} 10. Qb3 {[%clk
1:20:34]} 10... Nc6 {[%clk 1:33:28]} 11. Nbd2 {[%clk 1:14:17]} 11... e6 {[%clk
1:25:32]} 12. g4 {[%clk 1:09:50]} 12... Bd7 {[%clk 1:13:15]} 13. Qa3 {[%clk
1:01:40]} 13... cxd4 {[%clk 1:17:28]} 14. exd4 {[%clk 0:58:46]} 14... O-O-O
{[%clk 1:13:53]} 15. O-O-O {[%clk 0:51:53]} 15... e5 {[%clk 1:11:04]} 16. Nxe5
{[%clk 0:45:35]} 16... Bxe5 {[%clk 0:53:59]} 17. dxe5 {[%clk 0:45:53]} 17...
Qxf2 {[%clk 0:54:05]} 18. Nf3 {[%clk 0:38:56]} 18... Bxg4 {[%clk 0:49:07]} 19.
Bb5 {[%clk 0:37:12]} 19... Bxf3 {[%clk 0:51:04]} 20. gxf3 {[%clk 0:34:09]} 20...
Nxe5 {[%clk 0:49:01]} 21. Rd4 {[%clk 0:33:02]} 21... Nxf3 {[%clk 0:39:51]} 22.
Ra4 {[%clk 0:18:31]} 22... Kb8 {[%clk 0:40:32]} 23. Qe7 {[%clk 0:17:42]} 23...
Qb6 {[%clk 0:38:23]} 24. Rb4 {[%clk 0:15:26]} 24... Qe6 {[%clk 0:33:26]} 25. Qc5
{[%clk 0:15:07]} 25... Rc8 {[%clk 0:31:12]} 26. Qf2 {[%clk 0:15:01]} 26... Ne5
{[%clk 0:31:26]} 27. Re1 {[%clk 0:14:50]} 27... f6 {[%clk 0:30:51]} 28. Kb1
{[%clk 0:14:21]} 28... h5 {[%clk 0:30:29]} 29. a4 {[%clk 0:14:15]} 29... Qd6
{[%clk 0:29:45]} 30. a5 {[%clk 0:14:21]} 30... Nc6 {[%clk 0:23:40]} 31. Bxc6
{[%clk 0:13:36]} 31... Rxc6 {[%clk 0:23:54]} 32. Qf5 {[%clk 0:13:47]} 32... h4
{[%clk 0:22:35]} 33. Qg6 {[%clk 0:14:06]} 33... Qd7 {[%clk 0:17:25]} 34. Kc1
{[%clk 0:10:30]} 34... Qh7 {[%clk 0:13:12]} 35. Re8+ {[%clk 0:10:56]} 35... Kc7
{[%clk 0:13:03]} 0-1

[Variant "Standard"]
[Site "Europe Echecs"]